bitfinex/quotes_ETHUSD_20250608
["timestamp","ask_amount","ask_price","bid_price","bid_amount"]
[1749417997023,8.84621682,2536.3,2536.2,19.94290671]
[1749417997625,8.84622009,2536.3,2536.2,19.94290671]
[1749417997823,8.47656266,2536.3,2536.2,19.94290671]
[1749417998446,8.84621923,2536.3,2536.2,19.94290671]
[1749417998763,8.84621966,2536.3,2536.2,19.94290671]
[1749417998965,8.84622011,2536.3,2536.2,19.94290671]
[1749417999285,8.47656266,2536.3,2536.2,19.94290671]
[1749418000146,8.84621719,2536.3,2536.2,19.94290671]
[1749418000465,8.47656266,2536.3,2536.2,19.94290671]
[1749418001169,8.84622155,2536.3,2536.2,19.94290671]
[1749418001338,8.47656266,2536.3,2536.2,19.94290671]
[1749418001735,10.4896677,2536.3,2536.2,16.0]
[1749418001952,10.88202065,2536.3,2536.2,16.0]
[1749418002464,11.25171739,2536.3,2536.2,16.0]
[1749418002638,11.25170873,2536.3,2536.2,16.0]
[1749418002965,11.25170783,2536.3,2536.2,16.0]
[1749418003169,10.88202065,2536.3,2536.2,16.0]
[1749418003750,11.25171545,2536.3,2536.2,16.0]
[1749418004067,11.25171557,2536.3,2536.2,16.0]
[1749418004433,9.30713289,2536.3,2536.2,16.0]
[1749418004866,9.676824,2536.3,2536.2,16.0]
[1749418005072,9.67682298,2536.3,2536.2,16.0]
[1749418005259,9.67682482,2536.3,2536.2,16.0]
[1749418005576,9.67664562,2536.3,2536.2,16.0]
[1749418006157,9.67663843,2536.3,2536.2,16.0]
[1749418006482,9.67663613,2536.3,2536.2,16.0]
[1749418006820,9.30707247,2536.3,2536.2,16.0]
[1749418006947,9.67663245,2536.3,2536.2,16.0]
[1749418007873,9.67658949,2536.3,2536.2,16.0]
[1749418008079,9.30707247,2536.3,2536.2,16.0]
[1749418009197,9.67655085,2536.3,2536.2,16.0]
[1749418009354,9.30707247,2536.3,2536.2,16.0]
[1749418010174,9.6765509,2536.3,2536.2,16.0]
[1749418010557,9.30707247,2536.3,2536.2,16.0]
[1749418011088,9.67655273,2536.3,2536.2,16.0]
[1749418011379,9.67655245,2536.3,2536.2,16.0]
[1749418011589,9.30707247,2536.3,2536.2,16.0]
[1749418011746,9.67655133,2536.3,2536.2,16.0]
[1749418011946,9.30707247,2536.3,2536.2,16.0]
[1749418012695,9.67654436,2536.3,2536.2,16.0]
[1749418012892,9.67654302,2536.3,2536.2,16.0]
[1749418013414,9.30707247,2536.3,2536.2,16.0]
[1749418013552,9.67654732,2536.3,2536.2,16.0]
[1749418013751,9.30707247,2536.3,2536.2,16.0]
[1749418014490,9.67653921,2536.3,2536.2,16.0]
[1749418015087,9.30707247,2536.3,2536.2,16.0]
[1749418015290,9.67652977,2536.3,2536.2,16.0]
[1749418015585,9.67650678,2536.3,2536.2,16.0]
[1749418015780,9.30707247,2536.3,2536.2,16.0]
[1749418016279,9.6765114,2536.3,2536.2,16.0]
[1749418016984,9.30707247,2536.3,2536.2,16.0]
[1749418017986,9.67651301,2536.3,2536.2,16.0]
[1749418018292,9.67651455,2536.3,2536.2,16.0]
[1749418018679,9.30707247,2536.3,2536.2,16.0]
[1749418018993,9.67650642,2536.3,2536.2,16.0]
[1749418019192,9.67650743,2536.3,2536.2,16.0]
[1749418019489,9.30707247,2536.3,2536.2,16.0]
[1749418019692,9.6765078,2536.3,2536.2,16.0]
[1749418019896,9.67650615,2536.3,2536.2,16.0]
[1749418020696,8.36110504,2536.3,2536.2,16.0]
[1749418021071,8.73053445,2536.3,2536.2,16.0]
[1749418021277,8.36110504,2536.3,2536.2,16.0]
[1749418021470,9.30687777,2536.3,2536.2,16.0]
[1749418021694,9.67630713,2536.3,2536.2,16.0]
[1749418022200,11.25259629,2536.3,2536.2,16.0]
[1749418022370,9.67630728,2536.3,2536.2,16.0]
[1749418022696,9.30687777,2536.3,2536.2,16.0]
[1749418023398,11.29330707,2536.3,2536.2,19.94290671]
[1749418023704,11.29330707,2536.3,2536.2,16.0]
[1749418023999,11.29332272,2536.3,2536.2,16.0]
[1749418024203,10.92387777,2536.3,2536.2,16.0]
[1749418025199,11.29332066,2536.3,2536.2,16.0]
[1749418025365,12.86960948,2536.3,2536.2,16.0]
[1749418025864,12.50016566,2536.3,2536.2,16.0]
[1749418026067,10.92387777,2536.3,2536.2,16.0]
[1749418026598,12.86962318,2536.3,2536.2,16.0]
[1749418026819,12.50016566,2536.3,2536.2,16.0]
[1749418026997,11.29333858,2536.3,2536.2,16.0]
[1749418027377,12.86962647,2536.3,2536.2,16.0]
[1749418027579,12.86968846,2536.3,2536.2,16.0]
[1749418027779,12.86968802,2536.3,2536.2,16.0]
[1749418028101,12.86968715,2536.3,2536.2,16.0]
[1749418028303,12.86968713,2536.3,2536.2,16.0]
[1749418028911,12.50016566,2536.3,2536.2,16.0]
[1749418029587,12.50016566,2536.3,2536.2,19.94290671]
[1749418029903,12.8696966,2536.3,2536.2,16.0]
[1749418030072,12.86986848,2536.3,2536.2,16.0]
[1749418030414,12.86986827,2536.3,2536.2,16.0]
[1749418030781,12.50016566,2536.3,2536.2,16.0]
[1749418030981,12.8698742,2536.3,2536.2,16.0]
[1749418031205,12.86987227,2536.3,2536.2,16.0]
[1749418031414,12.50016566,2536.3,2536.2,16.0]
[1749418031823,0.7922,2536.2,2535.4,0.7545]
[1749418032104,1.18320245,2535.9,2535.8,19.94338613]
[1749418032314,8.84570984,2535.9,2535.8,19.94338613]
[1749418032697,8.47597518,2535.9,2535.8,19.94338613]
[1749418033725,8.84540653,2535.9,2535.8,19.94338613]
[1749418034241,7.66220408,2535.9,2535.8,19.94338613]
[1749418034442,10.46232515,2535.9,2535.8,19.94338613]
[1749418034601,9.27912118,2535.9,2535.8,19.94338613]
[1749418034798,9.27912187,2535.9,2535.8,19.94338613]
[1749418035038,8.90977273,2535.9,2535.8,19.94338613]
[1749418035611,9.27910498,2535.9,2535.8,19.94338613]
[1749418036244,9.27905393,2535.9,2535.8,19.94338613]
[1749418036541,9.27905019,2535.9,2535.8,19.94338613]
[1749418036876,8.90977273,2535.9,2535.8,19.94338613]
[1749418037201,9.27904044,2535.9,2535.8,19.94338613]
[1749418037443,9.27903871,2535.9,2535.8,19.94338613]
[1749418038328,8.90977273,2535.9,2535.8,19.94338613]
[1749418038907,9.27901639,2535.9,2535.8,19.94338613]
[1749418039225,9.27901566,2535.9,2535.8,19.94338613]
[1749418040138,9.27900935,2535.9,2535.8,19.94338613]
[1749418040341,9.27901002,2535.9,2535.8,19.94338613]
[1749418040548,8.90977273,2535.9,2535.8,19.94338613]
[1749418041144,9.27900942,2535.9,2535.8,19.94338613]
[1749418041454,8.90977273,2535.9,2535.8,19.94338613]
[1749418042316,9.27901062,2535.9,2535.8,19.94338613]
[1749418042530,8.90977273,2535.9,2535.8,19.94338613]
[1749418042756,9.27901075,2535.9,2535.8,19.94338613]
[1749418043354,8.90977273,2535.9,2535.8,19.94338613]
[1749418043713,9.27901661,2535.9,2535.8,19.94338613]
[1749418043918,9.27901454,2535.9,2535.8,19.94338613]
[1749418044118,8.90977273,2535.9,2535.8,19.94338613]
[1749418044815,9.27903479,2535.9,2535.8,19.94338613]
[1749418045154,9.27903594,2535.9,2535.8,19.94338613]
[1749418045360,8.90977273,2535.9,2535.8,19.94338613]
[1749418045934,9.27903561,2535.9,2535.8,19.94338613]
[1749418046264,9.27903638,2535.9,2535.8,19.94338613]
[1749418046762,8.90977273,2535.9,2535.8,19.94338613]
[1749418046972,8.90938576,2535.9,2535.8,19.94338613]
[1749418047153,9.27864859,2535.9,2535.8,19.94338613]
[1749418047356,9.27865,2535.9,2535.8,19.94338613]
[1749418047551,8.90938576,2535.9,2535.8,19.94338613]
[1749418047928,9.27867025,2535.9,2535.8,19.94338613]
[1749418048771,8.90938576,2535.9,2535.8,19.94338613]
[1749418049570,9.27866971,2535.9,2535.8,19.94338613]
[1749418049780,8.90938576,2535.9,2535.8,19.94338613]
[1749418050142,9.27868843,2535.9,2535.8,19.94338613]
[1749418050461,8.90938576,2535.9,2535.8,19.94338613]
[1749418052032,8.90938576,2535.9,2535.8,20.72728613]
[1749418052033,0.94538576,2535.9,2535.8,20.72728613]
[1749418079033,0.94538576,2535.9,2535.8,19.94338613]
[1749418079732,7.53021277,2536.1,2535.9,19.94332105]
[1749418079894,1.31517337,2536.0,2535.9,23.91283496]
[1749418080231,1.31516717,2536.0,2535.9,23.91283496]
[1749418080407,0.94576797,2536.0,2535.9,23.91283496]
[1749418081535,1.31519123,2536.0,2535.9,23.91283496]
[1749418081734,1.3154227,2536.0,2535.9,23.91283496]
[1749418082335,0.94599944,2536.0,2535.9,23.91283496]
[1749418082925,1.31549758,2536.0,2535.9,23.91283496]
[1749418083126,0.94599944,2536.0,2535.9,23.91283496]
[1749418083332,1.31549192,2536.0,2535.9,23.91283496]
[1749418083530,0.94599944,2536.0,2535.9,23.91283496]
[1749418083738,1.31552737,2536.0,2535.9,23.91283496]
[1749418084041,0.94599944,2536.0,2535.9,23.91283496]
[1749418085099,1.31552804,2536.0,2535.9,23.91283496]
[1749418085330,1.3155267,2536.0,2535.9,23.91283496]
[1749418085530,1.31552785,2536.0,2535.9,23.91283496]
[1749418085750,0.94599944,2536.0,2535.9,23.91283496]
[1749418086519,1.31552852,2536.0,2535.9,23.91283496]
[1749418087457,1.31552343,2536.0,2535.9,23.91283496]
[1749418087754,0.94599944,2536.0,2535.9,23.91283496]
[1749418088059,1.31553167,2536.0,2535.9,23.91283496]
[1749418088274,2.06793254,2536.0,2535.9,3.94337316]
[1749418088419,2.43746655,2536.0,2535.9,3.94337316]
[1749418088719,1.49146711,2536.0,2535.9,3.94337316]
[1749418088921,2.43754783,2536.0,2535.9,3.94337316]
[1749418089117,2.437548,2536.0,2535.9,3.94337316]
[1749418089317,2.06801382,2536.0,2535.9,3.94337316]
[1749418089560,2.06801382,2536.0,2535.9,19.94337316]
[1749418089750,0.94608072,2536.0,2535.9,19.94337316]
[1749418089947,1.31561782,2536.0,2535.9,19.94337316]
[1749418090124,0.94608072,2536.0,2535.9,19.94337316]
[1749418091761,1.31562607,2536.0,2535.9,19.94337316]
[1749418091955,0.94608072,2536.0,2535.9,23.91288707]
[1749418092148,1.31563095,2536.0,2535.9,23.91288707]
[1749418092359,1.31561994,2536.0,2535.9,23.91288707]
[1749418092530,0.94608072,2536.0,2535.9,23.91288707]
[1749418093463,1.31562128,2536.0,2535.9,23.91288707]
[1749418093628,0.94608072,2536.0,2535.9,23.91288707]
[1749418094720,1.31564417,2536.0,2535.9,23.91288707]
[1749418094918,0.94608072,2536.0,2535.9,23.91288707]
[1749418095537,1.31563974,2536.0,2535.9,23.91288707]
[1749418095733,0.94608072,2536.0,2535.9,23.91288707]
[1749418096863,1.31564977,2536.0,2535.9,23.91288707]
[1749418097027,0.94608072,2536.0,2535.9,23.91288707]
[1749418097228,1.31564842,2536.0,2535.9,23.91288707]
[1749418097727,0.94608072,2536.0,2535.9,23.91288707]
[1749418098281,1.31565341,2536.0,2535.9,23.91288707]
[1749418098446,0.94608072,2536.0,2535.9,23.91288707]
[1749418099141,1.31565967,2536.0,2535.9,23.91288707]
[1749418099662,0.94608072,2536.0,2535.9,23.91288707]
[1749418100754,1.31566943,2536.0,2535.9,23.91288707]
[1749418100955,1.3156659,2536.0,2535.9,23.91288707]
[1749418101150,1.31567006,2536.0,2535.9,23.91288707]
[1749418101372,0.94608072,2536.0,2535.9,23.91288707]
[1749418102064,1.31566849,2536.0,2535.9,23.91288707]
[1749418102378,0.94608072,2536.0,2535.9,23.91288707]
[1749418102532,1.31566941,2536.0,2535.9,23.91288707]
[1749418102931,1.31566525,2536.0,2535.9,23.91288707]
[1749418103130,0.94608072,2536.0,2535.9,23.91288707]
[1749418103651,1.31565077,2536.0,2535.9,23.91288707]
[1749418103860,0.94608072,2536.0,2535.9,23.91288707]
[1749418104167,1.31565902,2536.0,2535.9,23.91288707]
[1749418104939,1.31564721,2536.0,2535.9,23.91288707]
[1749418105140,0.94608072,2536.0,2535.9,23.91288707]
[1749418105546,1.31565195,2536.0,2535.9,23.91288707]
[1749418105762,0.94608072,2536.0,2535.9,23.91288707]
[1749418105968,1.31564434,2536.0,2535.9,23.91288707]
[1749418106356,1.3156474,2536.0,2535.9,23.91288707]
[1749418106559,0.94608072,2536.0,2535.9,23.91288707]
[1749418106752,1.31564413,2536.0,2535.9,23.91288707]
[1749418106977,0.94608072,2536.0,2535.9,23.91288707]
[1749418107454,1.31564416,2536.0,2535.9,23.91288707]
[1749418107773,1.31564955,2536.0,2535.9,23.91288707]
[1749418108391,0.94608072,2536.0,2535.9,23.91288707]
[1749418108595,1.31565102,2536.0,2535.9,23.91288707]
[1749418108801,1.31565165,2536.0,2535.9,23.91288707]
[1749418108985,0.94608072,2536.0,2535.9,23.91288707]
[1749418109183,1.31564654,2536.0,2535.9,23.91288707]
[1749418109373,1.3156408,2536.0,2535.9,23.91288707]
[1749418109575,1.3156429,2536.0,2535.9,23.91288707]
[1749418109886,1.31564037,2536.0,2535.9,23.91288707]
[1749418110086,1.31564296,2536.0,2535.9,23.91288707]
[1749418110287,1.31563809,2536.0,2535.9,23.91288707]
[1749418110487,0.94608072,2536.0,2535.9,23.91288707]
[1749418110996,1.31564705,2536.0,2535.9,23.91288707]
[1749418111197,1.31564503,2536.0,2535.9,23.91288707]
[1749418111497,1.31564567,2536.0,2535.9,23.91288707]
[1749418112201,0.94608072,2536.0,2535.9,23.91288707]
[1749418112767,1.3156422,2536.0,2535.9,23.91288707]
[1749418112976,1.31564421,2536.0,2535.9,23.91288707]
[1749418113267,1.31564333,2536.0,2535.9,23.91288707]
[1749418113805,1.31564258,2536.0,2535.9,23.91288707]
[1749418114096,1.31563732,2536.0,2535.9,23.91288707]
[1749418114304,1.31563869,2536.0,2535.9,23.91288707]
[1749418114463,1.31564286,2536.0,2535.9,19.96951391]
[1749418114669,0.94608072,2536.0,2535.9,23.91288707]
[1749418115098,1.31563633,2536.0,2535.9,23.91288707]
[1749418115304,0.94608072,2536.0,2535.9,23.91288707]
[1749418115502,1.31563818,2536.0,2535.9,23.91288707]
[1749418115803,0.94608072,2536.0,2535.9,23.91288707]
[1749418116405,1.31567709,2536.0,2535.9,23.91288707]
[1749418117306,1.315677,2536.0,2535.9,23.91288707]
[1749418117511,0.94608072,2536.0,2535.9,23.91288707]
[1749418117706,1.31567248,2536.0,2535.9,23.91288707]
[1749418117882,0.94608072,2536.0,2535.9,23.91288707]
[1749418118083,1.31567512,2536.0,2535.9,23.91288707]
[1749418118513,1.31567072,2536.0,2535.9,23.91288707]
[1749418119094,1.3156705,2536.0,2535.9,23.91288707]
[1749418119288,0.94608072,2536.0,2535.9,23.91288707]
[1749418120188,1.31566472,2536.0,2535.9,23.91288707]
[1749418120415,1.31566472,2536.0,2535.9,19.94337316]
[1749418120615,0.94608072,2536.0,2535.9,19.94337316]
[1749418120844,1.31566855,2536.0,2535.9,19.94337316]
[1749418121126,0.94608072,2536.0,2535.9,19.94337316]
[1749418121521,1.31567309,2536.0,2535.9,19.94337316]
[1749418121734,0.94608072,2536.0,2535.9,19.94337316]
[1749418122116,1.31567053,2536.0,2535.9,19.94337316]
[1749418122759,0.94608072,2536.0,2535.9,19.94337316]
[1749418123144,1.31566333,2536.0,2535.9,19.94337316]
[1749418123318,1.31566287,2536.0,2535.9,19.94337316]
[1749418123499,0.94608072,2536.0,2535.9,19.94337316]
[1749418123702,1.31566393,2536.0,2535.9,19.94337316]
[1749418124407,0.94608072,2536.0,2535.9,19.94337316]
[1749418125537,1.31566586,2536.0,2535.9,19.94337316]
[1749418125917,0.94608072,2536.0,2535.9,19.94337316]
[1749418126133,1.31565683,2536.0,2535.9,19.94337316]
[1749418126443,0.94608072,2536.0,2535.9,19.94337316]
[1749418127022,1.31565833,2536.0,2535.9,19.94337316]
[1749418127258,1.31565829,2536.0,2535.9,19.94337316]
[1749418127658,1.31567463,2536.0,2535.9,19.94337316]
[1749418127877,1.31567832,2536.0,2535.9,19.94337316]
[1749418128077,0.94608072,2536.0,2535.9,19.94337316]
[1749418128276,1.31567198,2536.0,2535.9,19.94337316]
[1749418128611,0.94608072,2536.0,2535.9,19.94337316]
[1749418128742,1.31567201,2536.0,2535.9,19.94337316]
[1749418129058,1.31567006,2536.0,2535.9,19.94337316]
[1749418129259,1.31567658,2536.0,2535.9,19.94337316]
[1749418129687,0.94608072,2536.0,2535.9,19.94337316]
[1749418130547,1.31567306,2536.0,2535.9,19.94337316]
[1749418131299,1.3156785,2536.0,2535.9,19.94337316]
[1749418131466,1.31567815,2536.0,2535.9,19.94337316]
[1749418131661,0.94608072,2536.0,2535.9,19.94337316]
[1749418132067,1.31567596,2536.0,2535.9,19.94337316]
[1749418132404,1.31566441,2536.0,2535.9,19.94337316]
[1749418132896,0.94608072,2536.0,2535.9,19.94337316]
[1749418133102,8.30030002,2536.1,2536.0,19.94321766]
[1749418133301,9.61605275,2536.1,2536.0,19.94321766]
[1749418133600,9.24645937,2536.1,2536.0,19.94321766]
[1749418133999,8.06375935,2536.1,2536.0,19.94321766]
[1749418134203,9.61605024,2536.1,2536.0,19.94321766]
[1749418134802,9.61605814,2536.1,2536.0,19.94321766]
[1749418134999,9.24645937,2536.1,2536.0,19.94321766]
[1749418135400,9.61606237,2536.1,2536.0,19.94321766]
[1749418135592,8.06375935,2536.1,2536.0,19.94321766]
[1749418135793,8.43335921,2536.1,2536.0,19.94321766]
[1749418135961,9.61605923,2536.1,2536.0,19.94321766]
[1749418136582,9.61606419,2536.1,2536.0,19.94321766]
[1749418136781,9.24645937,2536.1,2536.0,19.94321766]
[1749418137008,8.43335935,2536.1,2536.0,19.94321766]
[1749418137306,9.24645937,2536.1,2536.0,19.94321766]
[1749418137606,9.61606415,2536.1,2536.0,19.94321766]
[1749418138282,9.61605474,2536.1,2536.0,19.94321766]
[1749418138478,9.24639203,2536.1,2536.0,19.94321766]
[1749418139005,9.61598754,2536.1,2536.0,19.94321766]
[1749418139393,9.61599423,2536.1,2535.9,19.94335985]
[1749418139702,1.31579612,2536.0,2535.9,19.94335985]
[1749418139866,1.31581717,2536.0,2535.9,19.94335985]
[1749418140072,1.3158195,2536.0,2535.9,19.94335985]
[1749418140269,1.31582374,2536.0,2535.9,16.0]
[1749418140523,0.94612979,2536.0,2535.9,19.94337316]
[1749418141431,1.31582649,2536.0,2535.9,19.94337316]
[1749418141871,1.31608219,2536.0,2535.9,19.94337316]
[1749418142076,0.94638128,2536.0,2535.9,19.94337316]
[1749418142795,1.31607924,2536.0,2535.9,19.94337316]
[1749418142976,1.31607924,2536.0,2535.9,16.0]
[1749418143721,1.31608397,2536.0,2535.9,16.0]
[1749418143921,1.3160831,2536.0,2535.9,16.0]
[1749418144123,0.94638128,2536.0,2535.9,16.0]
[1749418144877,1.31608282,2536.0,2535.9,16.0]
[1749418145334,0.94638128,2536.0,2535.9,16.0]
[1749418145495,1.31608525,2536.0,2535.9,16.0]
[1749418145818,0.94638128,2536.0,2535.9,16.0]
[1749418146185,1.31608401,2536.0,2535.9,16.0]
[1749418146390,0.94638128,2536.0,2535.9,16.0]
[1749418146590,1.31608003,2536.0,2535.9,16.0]
[1749418146991,1.31608179,2536.0,2535.9,16.0]
[1749418147340,0.94638128,2536.0,2535.9,16.0]
[1749418148387,1.31608073,2536.0,2535.9,16.0]
[1749418148886,1.3160738,2536.0,2535.9,16.0]
[1749418149087,0.94638128,2536.0,2535.9,16.0]
[1749418149798,1.31605553,2536.0,2535.9,16.0]
[1749418150136,0.94638128,2536.0,2535.9,16.0]
[1749418150509,1.31597069,2536.0,2535.9,16.0]
[1749418150729,1.31595142,2536.0,2535.9,16.0]
[1749418150887,0.94638128,2536.0,2535.9,16.0]
[1749418151318,1.31590446,2536.0,2535.9,16.0]
[1749418151524,0.94638128,2536.0,2535.9,16.0]
[1749418153228,7.1176,2536.1,2535.9,16.0]
[1749418153427,0.94594179,2536.0,2535.9,16.0]
[1749418154934,0.7755,2535.9,2535.2,3.94442693]
[1749418155125,7.66146166,2535.8,2535.7,19.94360099]
[1749418155328,7.66144057,2535.8,2535.7,20.33651798]
[1749418155636,7.29194179,2535.8,2535.7,20.33651798]
[1749418155834,7.66143625,2535.8,2535.7,20.33651798]
[1749418156000,7.29194179,2535.8,2535.7,20.33651798]
[1749418156201,7.66143969,2535.8,2535.7,20.33651798]
[1749418156438,7.29194179,2535.8,2535.7,20.33651798]
[1749418156815,7.66144494,2535.8,2535.7,20.33651798]
[1749418157016,7.29194179,2535.8,2535.7,20.33651798]
[1749418169767,7.29081879,2535.8,2535.7,20.33651798]
[1749418176265,7.65998775,2535.8,2535.7,20.33651798]
[1749418176472,7.29081879,2535.8,2535.7,20.33651798]
[1749418177463,7.6599824,2535.8,2535.7,20.33651798]
[1749418177638,7.29081879,2535.8,2535.7,20.33651798]
[1749418178571,7.6601868,2535.8,2535.7,20.33651798]
[1749418178870,7.29081879,2535.8,2535.7,20.33651798]
[1749418179235,7.66019089,2535.8,2535.7,20.33651798]
[1749418179441,7.66018914,2535.8,2535.7,20.33651798]
[1749418179761,7.29081879,2535.8,2535.7,20.33651798]
[1749418180140,7.66018605,2535.8,2535.7,20.33651798]
[1749418180771,6.71536726,2535.8,2535.7,20.33651798]
[1749418180938,7.2910206,2535.8,2535.7,20.33651798]
[1749418181139,7.66037839,2535.8,2535.7,20.33651798]
[1749418181338,7.2910206,2535.8,2535.7,20.33651798]
[1749418181852,7.6603793,2535.8,2535.7,20.33660117]
[1749418182050,7.66038486,2535.8,2535.7,20.33660117]
[1749418182238,7.6603778,2535.8,2535.7,20.33660117]
[1749418182438,7.2910206,2535.8,2535.7,20.33660117]
[1749418182639,7.66037725,2535.8,2535.7,20.33660117]
[1749418182847,7.66038414,2535.8,2535.7,20.33660117]
[1749418183152,7.66037553,2535.8,2535.7,20.33660117]
[1749418183355,7.2910206,2535.8,2535.7,20.33660117]
[1749418183557,7.66038232,2535.8,2535.7,20.33660117]
[1749418184379,7.66038988,2535.8,2535.7,20.33660117]
[1749418184583,7.2910206,2535.8,2535.7,20.33660117]
[1749418185480,7.66038319,2535.8,2535.7,20.33660117]
[1749418185886,7.2910206,2535.8,2535.7,20.33660117]
[1749418186062,7.66038104,2535.8,2535.7,20.33660117]
[1749418186246,7.2910206,2535.8,2535.7,20.33660117]
[1749418187085,7.6603833,2535.8,2535.7,20.33660117]
[1749418187779,7.66037967,2535.8,2535.7,20.33660117]
[1749418187959,7.2910206,2535.8,2535.7,20.33660117]
[1749418188989,7.66038291,2535.8,2535.7,20.33660117]
[1749418189284,7.66038145,2535.8,2535.7,20.33660117]
[1749418189449,7.2910206,2535.8,2535.7,20.33660117]
[1749418190047,7.66038199,2535.8,2535.7,20.33660117]
[1749418190265,7.2910206,2535.8,2535.7,20.33660117]
[1749418190683,7.6603813,2535.8,2535.7,20.33660117]
[1749418191192,7.66037831,2535.8,2535.7,20.33660117]
[1749418191348,7.2910206,2535.8,2535.7,20.33660117]
[1749418192384,7.66038186,2535.8,2535.7,20.33660117]
[1749418192689,7.66036174,2535.8,2535.7,20.33660117]
[1749418192862,7.2910206,2535.8,2535.7,20.33660117]
[1749418193692,7.66036461,2535.8,2535.7,20.33660117]
[1749418193877,7.6603693,2535.8,2535.7,20.33660117]
[1749418194382,7.2910206,2535.8,2535.7,20.33660117]
[1749418194748,7.66037355,2535.8,2535.7,20.33660117]
[1749418194949,7.2910206,2535.8,2535.7,20.33660117]
[1749418196116,7.66040694,2535.8,2535.7,20.33660117]
[1749418196253,7.2910206,2535.8,2535.7,20.33660117]
[1749418196454,7.66040804,2535.8,2535.7,20.33660117]
[1749418196726,7.2910206,2535.8,2535.7,20.33660117]
[1749418197728,7.66040781,2535.8,2535.7,20.33660117]
[1749418197864,7.2910206,2535.8,2535.7,20.33660117]
[1749418198200,7.66040573,2535.8,2535.7,20.33660117]
[1749418198518,7.2910206,2535.8,2535.7,20.33660117]
[1749418198660,7.66040612,2535.8,2535.7,20.33660117]
[1749418198860,7.2910206,2535.8,2535.7,20.33660117]
[1749418199157,7.66040547,2535.8,2535.7,20.33660117]
[1749418199689,7.66041109,2535.8,2535.7,20.33660117]
[1749418200196,7.2910206,2535.8,2535.7,20.33660117]
[1749418200708,7.2910206,2535.8,2535.7,16.39291699]
[1749418201185,7.66048029,2535.8,2535.7,16.39291699]
[1749418201604,7.66049017,2535.8,2535.7,16.39291699]
[1749418201788,7.66048565,2535.8,2535.7,16.39291699]
[1749418202097,7.2910206,2535.8,2535.7,16.39291699]
[1749418202351,6.346,2535.8,2535.7,16.39291699]
[1749418202501,6.71546731,2535.8,2535.7,16.39291699]
[1749418203307,6.71546731,2535.8,2535.7,20.33660117]
[1749418203463,6.346,2535.8,2535.7,20.33660117]
[1749418203658,6.71546155,2535.8,2535.7,20.33660117]
[1749418203858,6.346,2535.8,2535.7,20.33660117]
[1749418204058,6.71546142,2535.8,2535.7,20.33660117]
[1749418204302,6.346,2535.8,2535.7,20.33660117]
[1749418204702,6.71546141,2535.8,2535.7,20.33660117]
[1749418205007,6.346,2535.8,2535.7,20.33660117]
[1749418206313,6.71546544,2535.8,2535.7,20.33660117]
[1749418206609,6.71545802,2535.8,2535.7,20.33660117]
[1749418206998,6.346,2535.8,2535.7,20.33660117]
[1749418207405,6.71545859,2535.8,2535.7,20.33660117]
[1749418207610,6.71545891,2535.8,2535.7,20.33660117]
[1749418207812,6.71546151,2535.8,2535.7,20.33660117]
[1749418208016,6.71546001,2535.8,2535.7,20.33660117]
[1749418208515,6.71545678,2535.8,2535.7,20.33660117]
[1749418208718,6.346,2535.8,2535.7,20.33660117]
[1749418208895,6.71546694,2535.8,2535.7,20.33660117]
[1749418209101,6.346,2535.8,2535.7,20.33660117]
[1749418209309,6.7154643,2535.8,2535.7,20.33660117]
[1749418209516,6.346,2535.8,2535.7,20.33660117]
[1749418209834,6.7154625,2535.8,2535.7,20.33660117]
[1749418210114,6.71546525,2535.8,2535.7,20.33660117]
[1749418210300,6.7154723,2535.8,2535.7,20.33660117]
[1749418210474,6.346,2535.8,2535.7,20.33660117]
[1749418211091,6.71547365,2535.8,2535.7,20.33660117]
[1749418211284,6.346,2535.8,2535.7,20.33660117]
[1749418211699,6.71546894,2535.8,2535.7,20.33660117]
[1749418212116,6.346,2535.8,2535.7,20.33660117]
[1749418213230,6.71547459,2535.8,2535.7,20.33660117]
[1749418213806,7.29193513,2535.8,2535.7,20.33660117]
[1749418214722,7.66145375,2535.8,2535.7,20.33660117]
[1749418214924,7.66145366,2535.8,2535.7,20.33660117]
[1749418215606,7.29193513,2535.8,2535.7,20.33660117]
[1749418215920,7.66145915,2535.8,2535.7,20.33660117]
[1749418216085,8.41313294,2535.8,2535.7,16.0]
[1749418217364,9.59555185,2535.8,2535.7,16.0]
[1749418218515,9.96491748,2535.8,2535.7,16.0]
[1749418218829,8.41313294,2535.8,2535.7,16.0]
[1749418219031,9.59555185,2535.8,2535.7,16.0]
[1749418219205,9.96491778,2535.8,2535.7,16.0]
[1749418219526,9.59555185,2535.8,2535.7,16.0]
[1749418220717,9.96491908,2535.8,2535.7,16.0]
[1749418221028,9.59555185,2535.8,2535.7,16.0]
[1749418221244,8.41313294,2535.8,2535.7,16.0]
[1749418221651,8.78250012,2535.8,2535.7,16.0]
[1749418221847,9.59555185,2535.8,2535.7,16.0]
[1749418222049,9.96491334,2535.8,2535.7,16.0]
[1749418222235,8.41313294,2535.8,2535.7,16.0]
[1749418222437,8.78250031,2535.8,2535.7,16.0]
[1749418222638,8.78248521,2535.8,2535.7,16.0]
[1749418222839,8.78248295,2535.8,2535.7,16.0]
[1749418223152,8.41313294,2535.8,2535.7,16.0]
[1749418223650,9.59555185,2535.8,2535.7,16.0]
[1749418224006,9.96490412,2535.8,2535.7,16.0]
[1749418224650,9.59555185,2535.8,2535.7,16.0]
[1749418224861,9.96479725,2535.8,2535.7,16.0]
[1749418225021,9.96478743,2535.8,2535.7,16.0]
[1749418225220,9.59551159,2535.8,2535.7,16.0]
[1749418225629,9.96475438,2535.8,2535.7,16.0]
[1749418225812,9.96474819,2535.8,2535.7,16.0]
[1749418226148,9.59551159,2535.8,2535.7,16.0]
[1749418226723,9.96475005,2535.8,2535.7,16.0]
[1749418226923,9.59551159,2535.8,2535.7,16.0]
[1749418227142,8.41309268,2535.8,2535.7,16.0]
[1749418227324,9.96475227,2535.8,2535.7,16.0]
[1749418227514,9.59551159,2535.8,2535.7,16.0]
[1749418227942,8.41309268,2535.8,2535.7,16.0]
[1749418228143,9.96473259,2535.8,2535.7,16.0]
[1749418228325,9.59551159,2535.8,2535.7,16.0]
[1749418228527,9.96473299,2535.8,2535.7,16.0]
[1749418228751,8.41309268,2535.8,2535.7,16.0]
[1749418229071,9.59551159,2535.8,2535.7,16.0]
[1749418229854,9.96473275,2535.8,2535.7,16.0]
[1749418230016,9.96473964,2535.8,2535.7,16.0]
[1749418230222,9.96473256,2535.8,2535.7,16.0]
[1749418230555,9.59551159,2535.8,2535.7,16.0]
[1749418230753,9.96472946,2535.8,2535.7,16.0]
[1749418230957,9.59551159,2535.8,2535.7,16.0]
[1749418232052,9.96469836,2535.8,2535.7,16.0]